[Event "*** Titled Tuesday Blitz"]
[Site "Chess.com"]
[Date "2021.02.09"]
[Round "9"]
[White "nochewycandy"]
[Black "HajiyevKanan"]
[Result "1-0"]
[WhiteElo "2650"]
[BlackElo "2485"]
[TimeControl "180+1"]
[EndTime "11:45:19 PST"]
[Termination "nochewycandy won by resignation"]

1. e4 {[%clk 0:03:00.9]} 1... c6 {[%clk 0:03:00.5]} 2. d4 {[%clk 0:03:00.2]}
2... d5 {[%clk 0:03:01.4]} 3. Nd2 {[%clk 0:03:00.9]} 3... a6 {[%clk 0:03:00.5]}
4. Ngf3 {[%clk 0:02:46.5]} 4... Bg4 {[%clk 0:03:00.4]} 5. h3 {[%clk 0:02:44.1]}
5... Bh5 {[%clk 0:03:00.3]} 6. Be2 {[%clk 0:02:41.5]} 6... e6 {[%clk 0:03:00.2]}
7. O-O {[%clk 0:02:40.7]} 7... Nf6 {[%clk 0:03:00]} 8. e5 {[%clk 0:02:40.3]}
8... Nfd7 {[%clk 0:03:00.3]} 9. c3 {[%clk 0:02:39.8]} 9... c5 {[%clk 0:03:00.8]}
10. Nb3 {[%clk 0:02:32.7]} 10... cxd4 {[%clk 0:02:59.8]} 11. cxd4 {[%clk
0:02:32]} 11... Nc6 {[%clk 0:03:00.7]} 12. Be3 {[%clk 0:02:30.9]} 12... Be7
{[%clk 0:03:00.7]} 13. Ne1 {[%clk 0:02:29.6]} 13... Bg6 {[%clk 0:03:00.5]} 14.
Nd3 {[%clk 0:02:29.5]} 14... O-O {[%clk 0:02:59.4]} 15. Nf4 {[%clk 0:02:29.4]}
15... Rc8 {[%clk 0:02:54.8]} 16. a3 {[%clk 0:02:28.4]} 16... b5 {[%clk
0:02:53.3]} 17. Qd2 {[%clk 0:02:24.7]} 17... Nb6 {[%clk 0:02:53]} 18. Nc5 {[%clk
0:02:22.4]} 18... Bxc5 {[%clk 0:02:52.5]} 19. dxc5 {[%clk 0:02:22.7]} 19... Nc4
{[%clk 0:02:53]} 20. Bxc4 {[%clk 0:02:22.6]} 20... dxc4 {[%clk 0:02:52.6]} 21.
Qc3 {[%clk 0:02:21.3]} 21... Bd3 {[%clk 0:02:48]} 22. Rfe1 {[%clk 0:02:19.3]}
22... h6 {[%clk 0:02:42.2]} 23. b4 {[%clk 0:02:17]} 23... Bf5 {[%clk 0:02:39.5]}
24. Rad1 {[%clk 0:02:15.9]} 24... Qc7 {[%clk 0:02:39]} 25. Rd6 {[%clk
0:02:16.3]} 25... Rfd8 {[%clk 0:02:37.7]} 26. Red1 {[%clk 0:02:12.8]} 26... Rxd6
{[%clk 0:02:28.6]} 27. exd6 {[%clk 0:02:01.8]} 27... Qd7 {[%clk 0:02:28.4]} 28.
Nh5 {[%clk 0:01:59.3]} 28... f6 {[%clk 0:02:04.1]} 29. Qxf6 {[%clk 0:01:50.9]}
29... Qf7 {[%clk 0:01:34.5]} 30. Qxf7+ {[%clk 0:01:48.4]} 30... Kxf7 {[%clk
0:01:33.9]} 31. Bc1 {[%clk 0:01:39]} 31... e5 {[%clk 0:01:25.4]} 32. Bb2 {[%clk
0:01:36.8]} 32... g6 {[%clk 0:01:15.7]} 33. Ng3 {[%clk 0:01:34.1]} 33... Ke6
{[%clk 0:01:15.1]} 34. f3 {[%clk 0:01:30.7]} 34... h5 {[%clk 0:01:10.8]} 35. Bc3
{[%clk 0:01:29.2]} 35... a5 {[%clk 0:01:04.9]} 36. Kf2 {[%clk 0:01:24.7]} 36...
axb4 {[%clk 0:01:04.7]} 37. axb4 {[%clk 0:01:25.4]} 37... Ra8 {[%clk 0:01:05.2]}
38. Nxf5 {[%clk 0:01:10.4]} 38... gxf5 {[%clk 0:01:04.4]} 39. d7 {[%clk
0:01:11.1]} 39... Ra2+ {[%clk 0:00:35.8]} 40. Kg3 {[%clk 0:01:11.1]} 40... Rc2
{[%clk 0:00:29.2]} 41. Rd6+ {[%clk 0:01:09.6]} 41... Ke7 {[%clk 0:00:29.4]} 42.
Bxe5 {[%clk 0:01:01.9]} 42... h4+ {[%clk 0:00:20.1]} 43. Kh2 {[%clk 0:01:01.7]}
43... c3 {[%clk 0:00:16]} 44. Bf6+ {[%clk 0:00:59.8]} 44... Kf7 {[%clk
0:00:14.2]} 45. Rxc6 {[%clk 0:00:59.6]} 45... Rd2 {[%clk 0:00:12.8]} 46. Bxc3
{[%clk 0:00:55.9]} 46... Rxd7 {[%clk 0:00:12.7]} 47. Be5 {[%clk 0:00:54.6]}
47... f4 {[%clk 0:00:10.1]} 48. Bxf4 {[%clk 0:00:54.4]} 48... Rd4 {[%clk
0:00:10.3]} 49. Bd6 {[%clk 0:00:53.3]} 49... Rxb4 {[%clk 0:00:10.4]} 50. Rb6
{[%clk 0:00:53.8]} 50... Rb1 {[%clk 0:00:09.6]} 51. c6 {[%clk 0:00:53.9]} 51...
Ke6 {[%clk 0:00:09.9]} 52. c7 {[%clk 0:00:53.9]} 52... Kd7 {[%clk 0:00:10.8]}
53. Be5 {[%clk 0:00:53.5]} 53... Re1 {[%clk 0:00:09.2]} 54. f4 {[%clk
0:00:53.6]} 54... Rb1 {[%clk 0:00:08]} 55. Rb8 {[%clk 0:00:53.4]} 55... Rc1
{[%clk 0:00:07.6]} 56. Rxb5 {[%clk 0:00:53]} 56... Ke6 {[%clk 0:00:08.2]} 57.
Rb8 {[%clk 0:00:52.9]} 57... Kf5 {[%clk 0:00:08.8]} 58. c8=Q+ {[%clk 0:00:52.7]}
58... Rxc8 {[%clk 0:00:09.1]} 59. Rxc8 {[%clk 0:00:53.1]} 59... Ke4 {[%clk
0:00:10]} 60. Rf8 {[%clk 0:00:52.5]} 60... Ke3 {[%clk 0:00:09.9]} 61. f5 {[%clk
0:00:52.9]} 61... Ke4 {[%clk 0:00:10.8]} 62. f6 {[%clk 0:00:53.4]} 62... Kd5
{[%clk 0:00:11]} 63. Bf4 {[%clk 0:00:53]} 63... Ke6 {[%clk 0:00:11.9]} 64. f7
{[%clk 0:00:52.8]} 64... Kf5 {[%clk 0:00:12.8]} 65. Rg8 {[%clk 0:00:51.4]} 65...
Ke4 {[%clk 0:00:11.7]} 66. f8=Q {[%clk 0:00:51.3]} 66... Kd3 {[%clk 0:00:12.6]}
67. Bg5 {[%clk 0:00:49.8]} 67... Ke2 {[%clk 0:00:13.5]} 68. Qf3+ {[%clk
0:00:49.3]} 68... Ke1 {[%clk 0:00:13.5]} 69. Bxh4+ {[%clk 0:00:49.3]} 69... Kd2
{[%clk 0:00:13.6]} 70. Rd8+ {[%clk 0:00:49.8]} 70... Kc2 {[%clk 0:00:13.2]} 71.
Qc6+ {[%clk 0:00:50.2]} 71... Kb2 {[%clk 0:00:13.7]} 72. Rb8+ {[%clk 0:00:51.1]}
1-0

[Event "*** Titled Tuesday Blitz"]
[Site "Chess.com"]
[Date "2021.02.09"]
[Round "9"]
[White "jens1102"]
[Black "jaramsdal"]
[Result "1-0"]
[WhiteElo "2459"]
[BlackElo "2308"]
[TimeControl "180+1"]
[EndTime "11:45:20 PST"]
[Termination "jens1102 won by resignation"]

1. e3 {[%clk 0:03:00.6]} 1... e5 {[%clk 0:02:59.2]} 2. c4 {[%clk 0:03:01.5]}
2... d5 {[%clk 0:02:57.7]} 3. cxd5 {[%clk 0:03:00.8]} 3... Nf6 {[%clk
0:02:58.3]} 4. Nf3 {[%clk 0:02:58.3]} 4... e4 {[%clk 0:02:51.4]} 5. Nd4 {[%clk
0:02:57.7]} 5... Bc5 {[%clk 0:02:30.2]} 6. Nb3 {[%clk 0:02:44.2]} 6... Bb6
{[%clk 0:02:26.8]} 7. a4 {[%clk 0:02:42.7]} 7... a5 {[%clk 0:02:10.9]} 8. Nc3
{[%clk 0:02:34.2]} 8... Nxd5 {[%clk 0:02:00.9]} 9. Nxe4 {[%clk 0:02:33.1]} 9...
Bf5 {[%clk 0:01:48.4]} 10. Ng3 {[%clk 0:02:28.8]} 10... Bg6 {[%clk 0:01:47]} 11.
d3 {[%clk 0:02:08.3]} 11... Nb4 {[%clk 0:01:46.3]} 12. e4 {[%clk 0:02:06.5]}
12... Qf6 {[%clk 0:01:21.8]} 13. f4 {[%clk 0:01:30.2]} 13... Qc6 {[%clk
0:01:17.7]} 14. f5 {[%clk 0:01:19.4]} 14... Nc2+ {[%clk 0:01:17.7]} 15. Ke2
{[%clk 0:01:14.3]} 15... Nxa1 {[%clk 0:01:17.7]} 16. Nxa1 {[%clk 0:01:14.6]}
16... Nd7 {[%clk 0:00:36.5]} 17. fxg6 {[%clk 0:01:07]} 17... hxg6 {[%clk
0:00:37.4]} 18. Qc2 {[%clk 0:01:02.9]} 18... Qf6 {[%clk 0:00:31.7]} 19. Be3
{[%clk 0:01:01.2]} 19... Bxe3 {[%clk 0:00:25.1]} 20. Kxe3 {[%clk 0:01:02.1]}
20... Qg5+ {[%clk 0:00:25.5]} 21. Ke2 {[%clk 0:00:55.4]} 21... O-O-O {[%clk
0:00:18.6]} 22. Qd2 {[%clk 0:00:53.6]} 22... Qg4+ {[%clk 0:00:18.7]} 23. Kf2
{[%clk 0:00:53.4]} 23... Ne5 {[%clk 0:00:17.1]} 24. Nc2 {[%clk 0:00:47.6]} 24...
Nc4 {[%clk 0:00:15.2]} 25. Qc1 {[%clk 0:00:35.8]} 25... Ne5 {[%clk 0:00:15.3]}
26. d4 {[%clk 0:00:27.9]} 26... Nc6 {[%clk 0:00:13.9]} 27. Be2 {[%clk
0:00:22.1]} 27... Qe6 {[%clk 0:00:13.6]} 28. d5 {[%clk 0:00:18.5]} 28... Qf6+
{[%clk 0:00:14]} 29. Ke1 {[%clk 0:00:16.3]} 29... Nd4 {[%clk 0:00:10.9]} 30.
Nxd4 {[%clk 0:00:15.8]} 30... Qxd4 {[%clk 0:00:11.5]} 31. Qd2 {[%clk 0:00:15.6]}
31... Qe5 {[%clk 0:00:11.5]} 32. Qc3 {[%clk 0:00:12.9]} 32... Qd6 {[%clk
0:00:08.9]} 33. h3 {[%clk 0:00:11.9]} 33... b6 {[%clk 0:00:06.7]} 34. Rf1 {[%clk
0:00:11.9]} 34... Rde8 {[%clk 0:00:06.7]} 35. Kd1 {[%clk 0:00:10.4]} 35... f6
{[%clk 0:00:06.6]} 36. Kc2 {[%clk 0:00:10.3]} 36... Re5 {[%clk 0:00:06.4]} 37.
Kb1 {[%clk 0:00:10.4]} 37... Rg5 {[%clk 0:00:06.6]} 38. Bg4+ {[%clk 0:00:10.4]}
38... f5 {[%clk 0:00:06.3]} 39. exf5 {[%clk 0:00:10.8]} 39... gxf5 {[%clk
0:00:07.2]} 40. Rxf5 {[%clk 0:00:11]} 40... Rxf5 {[%clk 0:00:06]} 41. Nxf5
{[%clk 0:00:11.9]} 41... Qf4 {[%clk 0:00:05.2]} 42. Qxg7 {[%clk 0:00:10.7]}
42... Rd8 {[%clk 0:00:03.6]} 43. Qe7 {[%clk 0:00:08]} 43... Qf1+ {[%clk
0:00:02]} 44. Ka2 {[%clk 0:00:06.9]} 44... Qxg2 {[%clk 0:00:02.3]} 45. Nd6+
{[%clk 0:00:06]} 45... Kb8 {[%clk 0:00:02.3]} 46. Qxd8+ {[%clk 0:00:06.1]} 46...
Ka7 {[%clk 0:00:02.8]} 47. Qxc7+ {[%clk 0:00:06.6]} 1-0

[Event "*** Titled Tuesday Blitz"]
[Site "Chess.com"]
[Date "2021.02.09"]
[Round "9"]
[White "HanSchut"]
[Black "RafalBRC"]
[Result "0-1"]
[WhiteElo "2262"]
[BlackElo "2108"]
[TimeControl "180+1"]
[EndTime "11:45:20 PST"]
[Termination "RafalBRC won on time"]

1. e4 {[%clk 0:03:00.9]} 1... e6 {[%clk 0:02:40.6]} 2. d4 {[%clk 0:02:52.4]}
2... d5 {[%clk 0:02:41.5]} 3. Nd2 {[%clk 0:02:52.6]} 3... dxe4 {[%clk 0:02:39]}
4. Nxe4 {[%clk 0:02:52.4]} 4... Bd7 {[%clk 0:02:39.5]} 5. Bd3 {[%clk 0:02:51.9]}
5... Bc6 {[%clk 0:02:39.5]} 6. Nf3 {[%clk 0:02:45.6]} 6... Nd7 {[%clk 0:02:40]}
7. Qe2 {[%clk 0:02:35.6]} 7... Ngf6 {[%clk 0:02:40]} 8. Ng3 {[%clk 0:02:30]}
8... b6 {[%clk 0:02:36.2]} 9. b3 {[%clk 0:02:29]} 9... Be7 {[%clk 0:02:36]} 10.
Bb2 {[%clk 0:02:29]} 10... Bb7 {[%clk 0:02:36]} 11. O-O-O {[%clk 0:02:28.9]}
11... c5 {[%clk 0:02:36]} 12. dxc5 {[%clk 0:02:27.1]} 12... Bxc5 {[%clk
0:02:34.4]} 13. Ne5 {[%clk 0:02:17.1]} 13... O-O {[%clk 0:02:05.7]} 14. Nxd7
{[%clk 0:02:10.6]} 14... Nxd7 {[%clk 0:02:04.7]} 15. Bb5 {[%clk 0:02:09.2]}
15... Qg5+ {[%clk 0:02:03.7]} 16. Kb1 {[%clk 0:02:01.3]} 16... Nf6 {[%clk
0:02:00.6]} 17. h4 {[%clk 0:01:56.8]} 17... Qg4 {[%clk 0:02:00.8]} 18. Bxf6
{[%clk 0:01:35.8]} 18... Qxe2 {[%clk 0:02:00]} 19. Bxe2 {[%clk 0:01:31.3]} 19...
gxf6 {[%clk 0:02:00.9]} 20. Nh5 {[%clk 0:01:31.5]} 20... Bxf2 {[%clk 0:01:52.1]}
21. Nxf6+ {[%clk 0:01:25.5]} 21... Kg7 {[%clk 0:01:50.7]} 22. Rdf1 {[%clk
0:01:23.8]} 22... Bd4 {[%clk 0:01:46.7]} 23. Nh5+ {[%clk 0:01:19.9]} 23... Kh8
{[%clk 0:01:46.5]} 24. Bf3 {[%clk 0:01:15]} 24... Bxf3 {[%clk 0:01:41.4]} 25.
Rxf3 {[%clk 0:01:15.9]} 25... f5 {[%clk 0:01:40.8]} 26. Rd1 {[%clk 0:01:09.7]}
26... e5 {[%clk 0:01:34.9]} 27. c3 {[%clk 0:01:05.7]} 27... e4 {[%clk
0:01:35.2]} 28. Rff1 {[%clk 0:00:59.7]} 28... Bxc3 {[%clk 0:01:33]} 29. Rd7
{[%clk 0:00:58.4]} 29... e3 {[%clk 0:01:22.9]} 30. Nf4 {[%clk 0:00:53]} 30...
Rae8 {[%clk 0:01:19.2]} 31. Rc1 {[%clk 0:00:49.7]} 31... Be5 {[%clk 0:01:11.3]}
32. Nd3 {[%clk 0:00:44.6]} 32... Bb8 {[%clk 0:01:07.3]} 33. Rc6 {[%clk
0:00:32.7]} 33... e2 {[%clk 0:01:00.2]} 34. Rh6 {[%clk 0:00:29.8]} 34... e1=Q+
{[%clk 0:00:52.2]} 35. Nxe1 {[%clk 0:00:30]} 35... Rxe1+ {[%clk 0:00:52.5]} 36.
Kb2 {[%clk 0:00:23.5]} 36... Be5+ {[%clk 0:00:51.8]} 37. Ka3 {[%clk 0:00:22.8]}
37... Bg7 {[%clk 0:00:48.4]} 38. Rc6 {[%clk 0:00:21.5]} 38... Re2 {[%clk
0:00:12.1]} 39. h5 {[%clk 0:00:20.6]} 39... b5 {[%clk 0:00:12]} 40. h6 {[%clk
0:00:17.9]} 40... Bb2+ {[%clk 0:00:11.5]} 41. Kb4 {[%clk 0:00:16.9]} 41... Rxg2
{[%clk 0:00:11.3]} 42. Rcc7 {[%clk 0:00:13.4]} 42... a6 {[%clk 0:00:09.2]} 43.
Rxh7+ {[%clk 0:00:12.4]} 43... Kg8 {[%clk 0:00:09.7]} 44. Rhd7 {[%clk
0:00:04.8]} 44... f4 {[%clk 0:00:09.6]} 45. h7+ {[%clk 0:00:04]} 45... Kh8
{[%clk 0:00:09.9]} 46. Rf7 {[%clk 0:00:01.6]} 46... Rxf7 {[%clk 0:00:09.2]} 47.
Rxf7 {[%clk 0:00:02.5]} 47... Be5 {[%clk 0:00:07.3]} 48. a4 {[%clk 0:00:01.2]}
48... Rg7 {[%clk 0:00:06.8]} 0-1

[Event "*** Titled Tuesday Blitz"]
[Site "Chess.com"]
[Date "2021.02.09"]
[Round "9"]
[White "MatthewG-p4p"]
[Black "wonderfultime"]
[Result "0-1"]
[WhiteElo "2830"]
[BlackElo "2940"]
[TimeControl "180+1"]
[EndTime "11:45:22 PST"]
[Termination "wonderfultime won by checkmate"]

1. c4 {[%clk 0:03:00.9]} 1... c6 {[%clk 0:03:00.1]} 2. e4 {[%clk 0:03:00.3]}
2... e5 {[%clk 0:02:55.1]} 3. Nf3 {[%clk 0:03:00.2]} 3... d6 {[%clk 0:02:55.4]}
4. d4 {[%clk 0:02:57.2]} 4... exd4 {[%clk 0:02:55.6]} 5. Nxd4 {[%clk 0:02:55.7]}
5... Nf6 {[%clk 0:02:56.2]} 6. Nc3 {[%clk 0:02:55.8]} 6... Be7 {[%clk
0:02:56.3]} 7. Be2 {[%clk 0:02:55.8]} 7... O-O {[%clk 0:02:56.9]} 8. O-O {[%clk
0:02:56.4]} 8... Re8 {[%clk 0:02:55.2]} 9. Re1 {[%clk 0:02:55.1]} 9... h6 {[%clk
0:02:44.2]} 10. Bf4 {[%clk 0:02:52.4]} 10... Bf8 {[%clk 0:02:44.5]} 11. Qc2
{[%clk 0:02:47.2]} 11... Na6 {[%clk 0:02:44]} 12. Rad1 {[%clk 0:02:45.2]} 12...
Nc5 {[%clk 0:02:21.1]} 13. Bf3 {[%clk 0:01:50.3]} 13... Qc7 {[%clk 0:02:06]} 14.
b4 {[%clk 0:01:44.9]} 14... Ncd7 {[%clk 0:02:01.2]} 15. Qb3 {[%clk 0:01:08.2]}
15... Ne5 {[%clk 0:02:00.9]} 16. Be2 {[%clk 0:01:08.4]} 16... Ng6 {[%clk
0:01:54.5]} 17. Bg3 {[%clk 0:00:57.8]} 17... Nxe4 {[%clk 0:01:54.6]} 18. Nxe4
{[%clk 0:00:57.9]} 18... Rxe4 {[%clk 0:01:55.5]} 19. c5 {[%clk 0:00:58.2]} 19...
Qe7 {[%clk 0:01:30.9]} 20. cxd6 {[%clk 0:00:42.2]} 20... Qe8 {[%clk 0:01:31.5]}
21. Kf1 {[%clk 0:00:35.6]} 21... Nf4 {[%clk 0:00:46.2]} 22. Bc4 {[%clk
0:00:20.6]} 22... Nd5 {[%clk 0:00:19.9]} 23. Bxd5 {[%clk 0:00:17.1]} 23... cxd5
{[%clk 0:00:20.8]} 24. Qxd5 {[%clk 0:00:17.7]} 24... Rxe1+ {[%clk 0:00:19.6]}
25. Rxe1 {[%clk 0:00:18.6]} 25... Qd8 {[%clk 0:00:18.3]} 26. h4 {[%clk
0:00:11.7]} 26... Bd7 {[%clk 0:00:15]} 27. Rd1 {[%clk 0:00:10.9]} 27... Qb6
{[%clk 0:00:14.3]} 28. a3 {[%clk 0:00:10.4]} 28... Qa6+ {[%clk 0:00:14.6]} 29.
Kg1 {[%clk 0:00:09.2]} 29... Re8 {[%clk 0:00:15.1]} 30. Qb3 {[%clk 0:00:07.5]}
30... Ba4 {[%clk 0:00:14]} 31. Qf3 {[%clk 0:00:03.2]} 31... Bxd1 {[%clk
0:00:13.8]} 32. Qxd1 {[%clk 0:00:04.1]} 32... Bxd6 {[%clk 0:00:14.4]} 33. Nf5
{[%clk 0:00:04.2]} 33... Bf8 {[%clk 0:00:12.7]} 34. Qg4 {[%clk 0:00:03.9]} 34...
Qg6 {[%clk 0:00:11.2]} 35. Qf3 {[%clk 0:00:03.1]} 35... Qe6 {[%clk 0:00:11.2]}
36. Ne3 {[%clk 0:00:03.4]} 36... Qe4 {[%clk 0:00:11.1]} 37. Qd1 {[%clk
0:00:02.9]} 37... b6 {[%clk 0:00:07.4]} 38. Qd7 {[%clk 0:00:03.2]} 38... a5
{[%clk 0:00:07.5]} 39. bxa5 {[%clk 0:00:03.3]} 39... bxa5 {[%clk 0:00:08.4]} 40.
a4 {[%clk 0:00:04.1]} 40... Qe6 {[%clk 0:00:08.7]} 41. Qb5 {[%clk 0:00:04.5]}
41... Bb4 {[%clk 0:00:07.6]} 42. Bc7 {[%clk 0:00:04.4]} 42... Qe4 {[%clk
0:00:03.5]} 43. Bxa5 {[%clk 0:00:04.5]} 43... Bd6 {[%clk 0:00:03.8]} 44. Bb6
{[%clk 0:00:04.3]} 44... Qe5 {[%clk 0:00:03.1]} 45. Qxe5 {[%clk 0:00:04.2]}
45... Rxe5 {[%clk 0:00:04]} 46. a5 {[%clk 0:00:05.1]} 46... Rb5 {[%clk
0:00:04.3]} 47. Nc4 {[%clk 0:00:05.1]} 47... Rb1# {[%clk 0:00:04.4]} 0-1

[Event "*** Titled Tuesday Blitz"]
[Site "Chess.com"]
[Date "2021.02.09"]
[Round "9"]
[White "Taktikmonster"]
[Black "C_K_G"]
[Result "1-0"]
[WhiteElo "2282"]
[BlackElo "2106"]
[TimeControl "180+1"]
[EndTime "11:45:26 PST"]
[Termination "Taktikmonster won on time"]

1. e4 {[%clk 0:02:46.9]} 1... c5 {[%clk 0:02:59.5]} 2. Nf3 {[%clk 0:02:45.8]}
2... d6 {[%clk 0:02:59.4]} 3. d4 {[%clk 0:02:46.7]} 3... cxd4 {[%clk 0:02:59.4]}
4. Nxd4 {[%clk 0:02:47.1]} 4... Nf6 {[%clk 0:02:59.5]} 5. Nc3 {[%clk 0:02:42]}
5... a6 {[%clk 0:02:59.3]} 6. Be2 {[%clk 0:02:41.6]} 6... e5 {[%clk 0:02:59.2]}
7. Nb3 {[%clk 0:02:41.5]} 7... Be7 {[%clk 0:02:59.3]} 8. Be3 {[%clk 0:02:41.7]}
8... O-O {[%clk 0:02:59.6]} 9. O-O {[%clk 0:02:42.1]} 9... Be6 {[%clk
0:02:59.9]} 10. Qd3 {[%clk 0:02:42.2]} 10... Nbd7 {[%clk 0:02:59.9]} 11. Nd5
{[%clk 0:02:38]} 11... b5 {[%clk 0:02:42.7]} 12. Nxe7+ {[%clk 0:02:33.9]} 12...
Qxe7 {[%clk 0:02:42.1]} 13. Rad1 {[%clk 0:02:34.4]} 13... d5 {[%clk 0:02:34.8]}
14. exd5 {[%clk 0:02:26.6]} 14... Bxd5 {[%clk 0:02:34.4]} 15. Bg5 {[%clk
0:02:19.8]} 15... Bc4 {[%clk 0:02:33.2]} 16. Qe3 {[%clk 0:02:06.6]} 16... Qe6
{[%clk 0:02:13.8]} 17. Bxc4 {[%clk 0:02:00]} 17... bxc4 {[%clk 0:02:12.8]} 18.
Nd2 {[%clk 0:02:00.4]} 18... Rac8 {[%clk 0:02:04.4]} 19. Rfe1 {[%clk 0:01:52.9]}
19... Rfe8 {[%clk 0:02:02.3]} 20. Nf3 {[%clk 0:01:39.6]} 20... h6 {[%clk
0:01:48.1]} 21. Bxf6 {[%clk 0:01:38.7]} 21... Nxf6 {[%clk 0:01:39.9]} 22. Qa3
{[%clk 0:01:38.9]} 22... e4 {[%clk 0:01:37.5]} 23. Nd4 {[%clk 0:01:32.1]} 23...
Qb6 {[%clk 0:01:25.4]} 24. Nf5 {[%clk 0:01:27.8]} 24... Rb8 {[%clk 0:01:20.7]}
25. Qg3 {[%clk 0:01:19.1]} 25... Nh5 {[%clk 0:01:12.1]} 26. Qg4 {[%clk
0:01:18.4]} 26... Qg6 {[%clk 0:01:09.8]} 27. Qxg6 {[%clk 0:01:15.6]} 27... fxg6
{[%clk 0:01:09.9]} 28. Nd6 {[%clk 0:01:16]} 28... Re6 {[%clk 0:00:59.3]} 29.
Nxc4 {[%clk 0:01:15.4]} 29... Nf4 {[%clk 0:00:56.7]} 30. Rd4 {[%clk 0:01:09.8]}
30... Rbe8 {[%clk 0:00:51.5]} 31. Nd2 {[%clk 0:01:04.9]} 31... g5 {[%clk
0:00:23.2]} 32. Rdxe4 {[%clk 0:01:04.4]} 32... Rxe4 {[%clk 0:00:22.6]} 33. Rxe4
{[%clk 0:00:52.9]} 33... Rd8 {[%clk 0:00:21.6]} 34. Nf3 {[%clk 0:00:52.7]} 34...
Rd1+ {[%clk 0:00:19]} 35. Re1 {[%clk 0:00:52.4]} 35... Rd5 {[%clk 0:00:16.5]}
36. g3 {[%clk 0:00:47.7]} 36... Ng6 {[%clk 0:00:14.7]} 37. c4 {[%clk 0:00:46.4]}
37... Rc5 {[%clk 0:00:13.1]} 38. Rc1 {[%clk 0:00:46.6]} 38... a5 {[%clk
0:00:13.2]} 39. b3 {[%clk 0:00:45.2]} 39... g4 {[%clk 0:00:12.7]} 40. Nd2 {[%clk
0:00:42.3]} 40... h5 {[%clk 0:00:12.5]} 41. a3 {[%clk 0:00:41.3]} 41... Re5
{[%clk 0:00:12.4]} 42. Kf1 {[%clk 0:00:35.7]} 42... h4 {[%clk 0:00:12.5]} 43. c5
{[%clk 0:00:35.7]} 43... Re8 {[%clk 0:00:11.1]} 44. b4 {[%clk 0:00:35.2]} 44...
hxg3 {[%clk 0:00:11.3]} 45. hxg3 {[%clk 0:00:34.9]} 45... Ne5 {[%clk 0:00:11.7]}
46. c6 {[%clk 0:00:28.7]} 46... Rc8 {[%clk 0:00:11]} 47. b5 {[%clk 0:00:27.3]}
47... Kf7 {[%clk 0:00:09.6]} 48. c7 {[%clk 0:00:19.7]} 48... Nd7 {[%clk
0:00:07.8]} 49. Nb3 {[%clk 0:00:15.9]} 49... Ke7 {[%clk 0:00:07.8]} 50. Nxa5
{[%clk 0:00:16.3]} 50... Kd6 {[%clk 0:00:06.7]} 51. Rc6+ {[%clk 0:00:16.3]}
51... Kd5 {[%clk 0:00:06.6]} 52. Nc4 {[%clk 0:00:15.9]} 1-0